Cogmind - Beta 16 @@@ ROGUE MODE // 2026.02.04 @ 11:30:01 Player: quak Result: Self-destructed Performance ------------- Evolutions (2) 1000 Regions Visited (7) 1400 Robots Destroyed (0) 0 Value Destroyed (0) 0 Prototype IDs (25) 500 Alien Tech Used (0) 0 Bonus (903) 903 TOTAL SCORE: 3803 Bonus ------- Pacifist 564 Follower Combat Kills 39 Aligned with FarCom 300 Cogmind --------- Core Integrity 442/550 Matter 138/300 Energy 99/100 System Corruption 0% Temperature Cool (0) Movement Core (50) Location -8/Materials Parts ------- > --- POWER (5) -------- (None) > --- PROPULSION (2) --- (None) > --- UTILITY (2) ------ Advanced Visual Processing Unit Seismic Detector > --- WEAPON (2) ------- (None) > --- INVENTORY (5) ---- Seismic Detector Seismic Detector Seismic Detector Seismic Detector Peak State ------------ > --- POWER ------------ (None) > --- PROPULSION ------- Flight Unit > --- UTILITY ---------- Seismic Detector Trap Reconfigurator > --- WEAPON ----------- (None) > --- INVENTORY -------- Seismic Detector Seismic Detector Seismic Detector Seismic Detector [Rating: 11] Favorites ----------- Power None Propulsion Flight Unit Flight Unit Flight Unit Utility Seismic Detector Device Seismic Detector Processor Advanced Visual Processing Unit Weapon None Build | -11 -10 -10 -9 -9 -9 -8 -8 ------- Run | Yrd Mat Min Mat Min Exi Min Mat Slots Evolved 4 | . . . 2 . . . 2 Power 4 | . . . 2 . . . 2 Propulsion . | . . . . . . . . Utility . | . . . . . . . . Weapon . | . . . . . . . . Parts Attached 5 | . . . 1 1 2 . 1 Power . | . . . . . . . . Engine . | . . . . . . . . Core . | . . . . . . . . Reactor . | . . . . . . . . Propulsion 1 | . . . . 1 . . . Treads . | . . . . . . . . Leg . | . . . . . . . . Wheel . | . . . . . . . . Hover . | . . . . . . . . Flight 1 | . . . . 1 . . . Utility 4 | . . . 1 . 2 . 1 Device 3 | . . . 1 . 2 . . Storage . | . . . . . . . . Processor 1 | . . . . . . . 1 Hackware . | . . . . . . . . Protection . | . . . . . . . . Artifact . | . . . . . . . . Weapon . | . . . . . . . . Energy Gun . | . . . . . . . . Energy Cannon . | . . . . . . . . Ballistic Gun . | . . . . . . . . Ballistic Cannon . | . . . . . . . . Launcher . | . . . . . . . . Special Weapon . | . . . . . . . . Impact Weapon . | . . . . . . . . Slashing Weapon . | . . . . . . . . Piercing Weapon . | . . . . . . . . Special Melee Weapon . | . . . . . . . . Unidentified Prototypes . | . . . . . . . . Parts Lost 2 | . . . . 1 . 1 . Power . | . . . . . . . . Propulsion 1 | . . . . . . 1 . Utility 1 | . . . . 1 . . . Weapon . | . . . . . . . . Highest Loss Streak 1 | . . . . 1 . 1 . To Critical Strikes 1 | . . . . 1 . . . Average Backups 3 | . . . . 5 4 4 4 Power . | . . . . . . . . Propulsion . | . . . . . . . . Utility 3 | . . . . 5 4 4 4 Weapon . | . . . . . . . . Tool/Special . | . . . . . . . . Unused Backups 4 | . . . . . . . 4 Power . | . . . . . . . . Propulsion . | . . . . . . . . Utility 4 | . . . . . . . 4 Weapon . | . . . . . . . . Tool/Special . | . . . . . . . . Average Slot Usage (%) 13 | . . . 4 10 26 24 18 Flight 2 | . . . . 2 11 2 . Device 10 | . . . 4 8 15 22 12 Processor 1 | . . . . . . . 6 Peak Build Rating 11 | . . . 1 1 11 11 10 Average Rating 3 | . . . . . 5 10 5 On Entrance 2 | . . . . 1 1 11 10 Avg Prop Armor Cover (%) . | . . . . . . . . Naked Turns 142 | . 20 78 38 6 . . . Heaviest Build 2 | . . . 1 1 2 2 2 Greatest Support 4 | 3 3 3 3 4 4 4 3 Greatest Overweight (x) . | . . . . . . . . Average Overweight (x) . | . . . . . . . . Largest Inventory Capacity 5 | 5 5 5 5 5 5 5 5 Average Capacity 5 | 5 5 5 5 5 5 5 5 Most Carried 5 | . . . 5 5 5 4 4 Average Carried 3 | . . . . 5 4 4 4 Final Capacity 5 | 5 5 5 5 5 5 5 5 Final Carried 5 | . . . 5 5 4 4 4 Class Distribution -------------------- 100% | Mutant Dominant Class ---------------- Mutant | -10/Materials Mutant | -10/Mines Mutant | -9/Materials Mutant | -9/Mines Mutant | -9/Exiles Mutant | -8/Mines Mutant | -8/Materials Resources | -11 -10 -10 -9 -9 -9 -8 -8 ----------- Run | Yrd Mat Min Mat Min Exi Min Mat Matter Collected 75 | . . . . 34 . 41 . Remotely . | . . . . . . . . Salvage Created . | . . . . . . . . Parts . | . . . . . . . . Haulers Intercepted . | . . . . . . . . Recyclers Shooed . | . . . . . . . . Parts Field Recycled . | . . . . . . . . Retrieved Matter . | . . . . . . . . Parts Self-Destructed . | . . . . . . . . Prevented . | . . . . . . . . Parts Restored . | . . . . . . . . Kills | -11 -10 -10 -9 -9 -9 -8 -8 ------- Run | Yrd Mat Min Mat Min Exi Min Mat Combat Hostiles Destroyed . | . . . . . . . . Classes Destroyed . | . . . . . . . . Best Kill Streak . | . . . . . . . . Combat Bots Only . | . . . . . . . . Max Kills in Single Turn . | . . . . . . . . Gunslinging . | . . . . . . . . Exploded . | . . . . . . . . Melee . | . . . . . . . . Uniques/NPCs Destroyed . | . . . . . . . . Combat | -11 -10 -10 -9 -9 -9 -8 -8 -------- Run | Yrd Mat Min Mat Min Exi Min Mat Hostile Shots Fired 75 | . . . . 24 . 39 12 Missed 34 | . . . . 13 . 17 4 Hits 41 | . . . . 11 . 22 8 Melee 2 | . . . . 2 . . . Projectile 39 | . . . . 9 . 22 8 AOE 2 | . . . . 2 . . . Critical Strikes 2 | . . . . 1 . . 1 Damage Taken 524 | . . . . 233 . 170 121 Core 442 | . . . . 207 . 127 108 Absorbed by Shields . | . . . . . . . . Core Remaining (%) 72 | 100 . 100 . . . 16 . Volleys Fired . | . . . . . . . . Largest . | . . . . . . . . Hottest . | . . . . . . . . Shots Fired . | . . . . . . . . Gun . | . . . . . . . . Cannon . | . . . . . . . . Launcher . | . . . . . . . . Special . | . . . . . . . . Kinetic . | . . . . . . . . Thermal . | . . . . . . . . Explosive . | . . . . . . . . Electromagnetic . | . . . . . . . . Robot Hit Streak . | . . . . . . . . Robot Miss Streak . | . . . . . . . . Penetration Max . | . . . . . . . . Secondary Targets . | . . . . . . . . Shots Hit Robots . | . . . . . . . . Core Hits 1 | . . . . . . 1 . Critical Kills . | . . . . . . . . Critical Parts Destroyed . | . . . . . . . . Critical Strikes . | . . . . . . . . Melee Attacks . | . . . . . . . . Impact . | . . . . . . . . Slashing . | . . . . . . . . Piercing . | . . . . . . . . Sneak Attacks . | . . . . . . . . Combat Hostiles . | . . . . . . . . Follow-up Attacks . | . . . . . . . . Damage Inflicted 4 | . . . . . . 4 . Guns . | . . . . . . . . Cannons . | . . . . . . . . Explosions . | . . . . . . . . Melee . | . . . . . . . . Ramming 4 | . . . . . . 4 . Kinetic . | . . . . . . . . Thermal . | . . . . . . . . Explosive . | . . . . . . . . Electromagnetic . | . . . . . . . . Impact . | . . . . . . . . Slashing . | . . . . . . . . Piercing . | . . . . . . . . Highest Corruption . | . . . . . . . . Average Corruption . | . . . . . . . . Corruption Purged . | . . . . . . . . Corruption Blocked . | . . . . . . . . Overload Shots . | . . . . . . . . Overflow Damage . | . . . . . . . . Projectiles . | . . . . . . . . Explosions . | . . . . . . . . Melee . | . . . . . . . . Knockbacks . | . . . . . . . . Impact . | . . . . . . . . Kinetic . | . . . . . . . . Secondary . | . . . . . . . . Self-Inflicted Damage 2 | . . . . . . 2 . Shots . | . . . . . . . . Rammed 1 | . . . . . . 1 . Targets Rammed 1 | . . . . . . 1 . Kicked . | . . . . . . . . Crushed . | . . . . . . . . Highest Temperature . | . . . . . . . . Average Temperature . | . . . . . . . . Received Heat Transfer 81 | . . . . . . . 81 Siege Activations . | . . . . . . . . Martial Activations . | . . . . . . . . Shielding Activations . | . . . . . . . . Robots Disrupted . | . . . . . . . . Combat Hostiles . | . . . . . . . . Robots Corrupted . | . . . . . . . . Combat Hostiles . | . . . . . . . . Parts Fried . | . . . . . . . . Impact Corruptions . | . . . . . . . . Robots Melted . | . . . . . . . . Combat Hostiles . | . . . . . . . . Parts Melted . | . . . . . . . . Heat Transferred . | . . . . . . . . Parts Sabotaged . | . . . . . . . . Parts Stolen . | . . . . . . . . Parts Stripped . | . . . . . . . . Power Chain Reactions . | . . . . . . . . Alert | -11 -10 -10 -9 -9 -9 -8 -8 ------- Run | Yrd Mat Min Mat Min Exi Min Mat Maximum Alert Level . | . . . . . . . . Low Security (%) 100 | 100 100 100 100 100 . 100 100 Level 1 . | . . . . . . . . Level 2 . | . . . . . . . . Level 3 . | . . . . . . . . Level 4 . | . . . . . . . . Level 5 . | . . . . . . . . High Security . | . . . . . . . . Max Security . | . . . . . . . . Peak Influence 120 | . 8 . 15 28 . 120 46 Initial 46 | . . . . . . . 46 Average 20 | . 6 . 3 4 . 73 23 Influence Increases 211 | . 8 . 15 38 . 150 . Destroy 0b10 Robot/C 20 | . . . . 20 . . . Allied During Kill 3 | . . . . 3 . . . Successful Hack 8 | . 8 . . . . . . Partial Spotted 15 | . . . . . . 15 . Lose Combat Pursuer 165 | . . . 15 15 . 135 . Influence Decreases 211 | . 8 . 15 38 . 30 120 Entered New Map 74 | . . . . . . . 74 Time Decay 117 | . 8 . 15 18 . 30 46 Lost Ally 20 | . . . . 20 . . . Squads Dispatched 1 | . . . . . . . 1 Investigation 1 | . . . . . . . 1 Extermination . | . . . . . . . . Reinforcement . | . . . . . . . . Assault . | . . . . . . . . Garrison . | . . . . . . . . Intercept . | . . . . . . . . Searches Triggered . | . . . . . . . . Construction Impeded . | . . . . . . . . Haulers Reinforced . | . . . . . . . . Active Scanning Responses . | . . . . . . . . Cargo Convoy Interrupts . | . . . . . . . . Stealth | -11 -10 -10 -9 -9 -9 -8 -8 --------- Run | Yrd Mat Min Mat Min Exi Min Mat Distress Signals 1 | . . . 1 . . . . Communications Jammed . | . . . . . . . . Distress Signals . | . . . . . . . . Times Spotted 51 | . . . 1 31 . 13 6 Peak Tracking Total 18 | . . . 2 18 . 6 5 Tactical Retreats 9 | . . . 1 5 . 3 . Traps | -11 -10 -10 -9 -9 -9 -8 -8 ------- Run | Yrd Mat Min Mat Min Exi Min Mat Traps Triggered 1 | . . . . . . . 1 Indirectly . | . . . . . . . . Trap Hack Attempts . | . . . . . . . . Triggered . | . . . . . . . . Disarmed . | . . . . . . . . Reprogrammed . | . . . . . . . . Reused . | . . . . . . . . Traps Extracted . | . . . . . . . . Installed . | . . . . . . . . Triggered . | . . . . . . . . Machines | -11 -10 -10 -9 -9 -9 -8 -8 ---------- Run | Yrd Mat Min Mat Min Exi Min Mat Machines Disabled . | . . . . . . . . Max in Single Turn . | . . . . . . . . Machines Repaired . | . . . . . . . . Machines Dismantled . | . . . . . . . . Machines Sabotaged . | . . . . . . . . Overloaded Fab Kills . | . . . . . . . . Hacking | -11 -10 -10 -9 -9 -9 -8 -8 --------- Run | Yrd Mat Min Mat Min Exi Min Mat Machines Accessed 6 | . 2 . 1 . 1 . 2 Terminals 5 | . 2 . 1 . . . 2 Fabricators . | . . . . . . . . Repair Stations . | . . . . . . . . Recycling Units . | . . . . . . . . Scanalyzers . | . . . . . . . . Garrison Access . | . . . . . . . . Total Hacks 14 | . 6 . 3 . 1 . 4 Successful 4 | . 2 . . . 1 . 1 Failed 10 | . 4 . 3 . . . 3 Catastrophic 3 | . 1 . 1 . . . 1 Database Lockouts . | . . . . . . . . Manual 9 | . 1 . 3 . 1 . 4 Terminals 13 | . 6 . 3 . . . 4 Fabricators . | . . . . . . . . Repair Stations . | . . . . . . . . Recycling Units . | . . . . . . . . Scanalyzers . | . . . . . . . . Garrison Access . | . . . . . . . . Terminal Hacks 3 | . 2 . . . 1 . . Prototype ID Bank 1 | . 1 . . . . . . Branch Access Points 1 | . 1 . . . . . . Proto ID Catalog 1 | . . . . . 1 . . Fabricator Hacks . | . . . . . . . . Repair Station Hacks . | . . . . . . . . Recycling Unit Hacks . | . . . . . . . . Scanalyzer . | . . . . . . . . Garrison Access Hacks . | . . . . . . . . Unauthorized Hacks 1 | . . . . . . . 1 Terminals 1 | . . . . . . . 1 Botnet 1 | . . . . . . . 1 Fabricators . | . . . . . . . . Repair Stations . | . . . . . . . . Recycling Units . | . . . . . . . . Scanalyzers . | . . . . . . . . Garrison Access . | . . . . . . . . Data Cores Recovered . | . . . . . . . . Used . | . . . . . . . . Hacking Detections 5 | . 2 . 1 . . . 2 Full Trace Events . | . . . . . . . . Feedback Events . | . . . . . . . . Feedback Blocked . | . . . . . . . . Robot Schematics Acquired . | . . . . . . . . Robots Built . | . . . . . . . . Authchips . | . . . . . . . . Time . | . . . . . . . . Total Robot Build Rating . | . . . . . . . . Part Schematics Acquired . | . . . . . . . . Parts Built . | . . . . . . . . Authchips . | . . . . . . . . Time . | . . . . . . . . Total Part Build Rating . | . . . . . . . . Part Studies Acquired . | . . . . . . . . Parts Repaired . | . . . . . . . . Time . | . . . . . . . . Parts Recycled . | . . . . . . . . Recycled Matter . | . . . . . . . . Retrieved Matter . | . . . . . . . . Retrieved Components . | . . . . . . . . Parts Scanalyzed . | . . . . . . . . Part Schematics Acquired . | . . . . . . . . Parts Damaged . | . . . . . . . . Bothacking | -11 -10 -10 -9 -9 -9 -8 -8 ------------ Run | Yrd Mat Min Mat Min Exi Min Mat Used RIF Installer . | . . . . . . . . Robots Hacked . | . . . . . . . . Non-combat . | . . . . . . . . Combat . | . . . . . . . . Robot Hacks Applied . | . . . . . . . . Relay Couplers Released . | . . . . . . . . Fabnet Peak Effective % . | . . . . . . . . Robots Rewired . | . . . . . . . . Allies Hacked . | . . . . . . . . Hacks Repelled . | . . . . . . . . Allies | -11 -10 -10 -9 -9 -9 -8 -8 -------- Run | Yrd Mat Min Mat Min Exi Min Mat Total Allies 3 | . . . . 3 . . . Largest Group 3 | . . . . 3 . . . Highest-Rated Group 40 | . . . . 40 . . . Highest-Rated Ally 16 | . . . . 16 . . . Total Orders . | . . . . . . . . Ally Attacks 7 | . . . . 7 . . . Total Damage 54 | . . . . 54 . . . Kills 1 | . . . . 1 . . . Allies Corrupted . | . . . . . . . . Allies Melted . | . . . . . . . . Intel | -11 -10 -10 -9 -9 -9 -8 -8 ------- Run | Yrd Mat Min Mat Min Exi Min Mat Active Infowar (turns) 350 | . . . 25 104 89 33 99 Optics 77 | . . . . . . . 77 Seismic 350 | . . . 25 104 89 33 99 Robot Analysis Total . | . . . . . . . . Derelict Logs Recovered 1 | . . . . 1 . . . Drone Launches . | . . . . . . . . Drone Recoveries . | . . . . . . . . Exploration | -11 -10 -10 -9 -9 -9 -8 -8 ------------- Run | Yrd Mat Min Mat Min Exi Min Mat Turns Passed 603 | 9 20 78 63 141 89 94 109 Spaces Moved 1180 | 18 32 155 104 249 215 193 214 Core 856 | 18 32 155 104 175 . 158 214 Treads . | . . . . . . . . Legs . | . . . . . . . . Wheels . | . . . . . . . . Hover . | . . . . . . . . Flight 324 | . . . . 74 215 35 . Fastest Speed 40 | 50 50 50 50 40 40 40 50 Average Speed 47 | 50 50 50 50 47 40 48 50 Slowest Speed 50 | 50 50 50 50 50 40 50 50 Overloaded Moves . | . . . . . . . . Propulsion Burnouts . | . . . . . . . . Robots Hopped . | . . . . . . . . Potential Cave-ins . | . . . . . . . . Cave-ins Triggered . | . . . . . . . . Exploration Rate (%) 36 | 3 7 56 13 68 59 60 29 Regions Visited 7 Branch Regions 4 Pre-discovered Areas . | . . . . . . . . Known Exits Taken 1 | . 1 . . . . . . Unknown Exits Taken 6 | 1 . 1 1 1 1 1 . Scrap Searched 1 | . . . . . . 1 . Spaces Dug . | . . . . . . . . Terrain Destroyed . | . . . . . . . . Melee . | . . . . . . . . Projectile . | . . . . . . . . AOE . | . . . . . . . . Terrain Rammed . | . . . . . . . . Walls Destroyed . | . . . . . . . . Machines Disabled . | . . . . . . . . Actions | -11 -10 -10 -9 -9 -9 -8 -8 --------- Run | Yrd Mat Min Mat Min Exi Min Mat Total 1215 | 17 35 154 113 271 217 193 215 Wait 30 | . 4 . 4 22 . . . Move 1173 | 17 31 154 103 248 214 192 214 Hop . | . . . . . . . . Pick Up 6 | . . . 5 . 1 . . Fast Attach 2 | . . . 1 1 . . . Attach 2 | . . . . . 2 . . Detach . | . . . . . . . . Swap 1 | . . . . . . . 1 Drop . | . . . . . . . . Fire . | . . . . . . . . Melee . | . . . . . . . . Ram 1 | . . . . . . 1 . Kick . | . . . . . . . . Crush . | . . . . . . . . Escape Stasis . | . . . . . . . . Rewire . | . . . . . . . . Trap . | . . . . . . . . Miscellaneous . | . . . . . . . . Route ------- -11/Scrapyard -10/Materials (discovered 2 exits: *Min x2) -10/Mines -9/Materials -9/Mines (discovered 2 exits: *Mat / *Exi) -9/Exiles -8/Mines -8/Materials History --------- Turn | Location | Event 2 | -11/Scrapyard | Discovered new exit (range 16) 10 | -11/Scrapyard | Entered Materials 13 | -10/Materials | Identified exit to Mines 30 | -10/Materials | Entered Mines 104 | -10/Mines | Discovered new exit (range 8) 108 | -10/Mines | Entered Materials 108 | -9/Materials | Evolved 2 slots: Power x2 142 | -9/Materials | Discovered new exit (range 9) 171 | -9/Materials | Entered Mines 172 | -9/Mines | Assembled infested the area 179 | -9/Mines | Learned Materials stockpile data 201 | -9/Mines | Met a Derelict bent on vengeance 217 | -9/Mines | Discovered new exit (range 5) 220 | -9/Mines | Assisted by bots powering up and referring to "LRC-V3" 287 | -9/Mines | Core integrity fell below 50% 302 | -9/Mines | Build established: Mutant 310 | -9/Mines | Deemed a non-threat by the Exiles lab entrance 310 | -9/Mines | Discovered new exit (range 5) 312 | -9/Mines | Entered Exiles 323 | -9/Exiles | Met 8R-AWN 330 | -9/Exiles | Met EX-HEX 341 | -9/Exiles | Met EX-BIN 346 | -9/Exiles | Aligned with FarCom system 346 | -9/Exiles | Given EX-Vault access code 355 | -9/Exiles | Opened EX-Vault 362 | -9/Exiles | Found Trap Reconfigurator 372 | -9/Exiles | Warned to stay clear of 0b10 Research branches 384 | -9/Exiles | Met EX-DEC 397 | -9/Exiles | Discovered new exit (range 14) 401 | -9/Exiles | Left Exiles lab with Trap Reconfigurator 401 | -9/Exiles | Entered Mines 481 | -8/Mines | Core integrity fell below 20% 491 | -8/Mines | Discovered new exit (range 10) 495 | -8/Mines | Entered Materials 495 | -8/Materials | Evolved 2 slots: Power x2 604 | -8/Materials | Self-destructed Last Messages --------------- 00495_ Receiving FarCom transmissions... Loading Materials stockpile data (x10)... 00505_ Connecting with Terminal... 00505_ Current location identified: Materials 00518_ K-01 Serf collects debris. 00521_ Connecting with Terminal... >>Trojan(Botnet) Trojan loaded successfully. Testing... Terminal linked with 0 systems. Awaiting botnet instructions. 00525_ K-01 Serf collects debris. 00527_ Acquired Adv. Visual Processing Unit. 00528_ K-01 Serf collects debris. 00578_ Triggered Alarm Trap. 00578_ An alarm sounds. 00578_ ALERT: Alarm triggered, dispatching investigation squad. 00580_ K-01 Serf collects debris. 00592_ Critical hit (Burn: +37). Map ----- +----------------------------------------------------+ | | | | | | | | | | | | | ????????????????????????????????????????????? | | ????????????????????????????????????????????? | | ????????????????????????????????????????????? | | ????????????????????????????????????????????? | | ????????????????????????????????????????????? | | ????????????????????????????????????????????? | | ????????????????????????????????????????????? | | ?????????????????????????#####??????????????? | | ????????????????????????? #??????????????? | | ????????????????????? ???" #??????????????? | | ????????????????????# """ = #??????????????? | | ????????????????????# """ #??????????????? | | ????????????????????#! = #??????????????? | | ????????????????????# """ #####??????????? | | #####???????????????# """ # #??????????? | | ########????????# """ # #??????????? | | "" # #????????#] # #??????????? | | "" # #????????######+### #??????????? | | "" # "" #??????????# #??????????? | | # T" #??????????# @ #??????????? | | # "" #???######## #??????????? | | # #???# !# ###########???????? | | #+##+###???#"" # # #???????? | | [ # #?????#"T # # [ #???????? | | +#### #?????#"" + + ] #???????? | | #?????# # # #???????? | | #?????# # ############??????? | | #?????########g ##? #??????? | | ############# # "" ]#??????? | | # "T #??????? | | ############# g " + "" #??????? | | #???????????# # """ #??????? | | #???????????######## [ # [ """ #??????? | | #??????????????????#######? """ #??????? | | #?????????????????????????? #??????? | | #???????????????????????????########??????? | | #?############????????????????????????????? | | #? #????????????????????????????? | | # #????????????????????????????? | | # #????????????????????????????? | | + #????????????????????????????? | | # ! ! #????????????????????????????? | | ##############????????????????????????????? | | ]]#?????????????????????????????????????? | +----------------------------------------------------+ Best States ------------- Heat Dissipation 31 Energy Generation 5 Energy Capacity 100 Matter Stores 148 Matter Capacity 300 Sight Range 20 Terrain Scan Density 10 Evasion (%) 62 Item Schematics ----------------- None Robot Schematics ------------------ None Fabricated ------------ Nothing Repaired ---------- Nothing Studied --------- None Alien Tech Used ----------------- None Achievements -------------- None Challenges ------------ None Game ------ Seed FusionScanDrillbomb Manual? 0 Play Time 00:09:23 Cumulative 40.6 hours Start 2026.02.04 @ 11:22:02 End 2026.02.04 @ 11:30:01 Sessions 1 Manual Loads 0 Difficulty Rogue Special Mode None Game No. 78 Rogue 78 Adventurer 0 Explorer 0 Win Type - Total 3 Types 3/0/0/0/0/0/0/0/0/0 Lore% 39 Gallery% 27 Achievement% 26 Wizard Run 0 Options --------- Layout 1 ASCII 0 Keyboard 1 Movement Vi Keybinds 0 Fullscreen 1 Font 32/SmallcapsGlow Map View 50x40 Zoom Use 0% Tactical HUD 1 Map Filters NONE Filters NONE Steam 1 RUN: 42984fda-938f-4199-90b9-9313fb385651